bitfinex/quotes_SOLUSD_20251118
["timestamp","ask_amount","ask_price","bid_price","bid_amount"]
[1763500398678,22.28458597,141.27,141.24,23.64096]
[1763500399015,4.16362597,141.26,141.23,18.12096]
[1763500399188,21.60458597,141.27,141.24,0.69]
[1763500399526,18.12096,141.27,141.24,0.69]
[1763500401006,18.12096,141.27,141.23,18.12096]
[1763500401007,21.60458597,141.27,141.23,18.12096]
[1763500401217,21.60458597,141.27,141.23,18.81096]
[1763500401499,22.28458597,141.27,141.23,18.81096]
[1763500402810,18.80096,141.27,141.23,22.29458597]
[1763500403110,18.80096,141.27,141.23,21.60458597]
[1763500403355,18.80096,141.27,141.23,22.29458597]
[1763500404219,18.80096,141.27,141.23,20.29858597]
[1763500404534,18.80096,141.27,141.24,3.48362597]
[1763500404716,4.9,141.29,141.26,3.48362597]
[1763500405029,23.02096,141.29,141.26,3.48362597]
[1763500405229,0.68,141.28,141.26,3.48362597]
[1763500408530,18.12096,141.29,141.26,3.48362597]
[1763500408834,18.12096,141.29,141.24,4.22]
[1763500408835,18.80096,141.31,141.28,3.48362597]
[1763500409044,0.68,141.31,141.28,3.48362597]
[1763500409332,0.68,141.3,141.28,3.48362597]
[1763500412239,18.12096,141.31,141.28,3.48362597]
[1763500412446,18.80096,141.31,141.28,3.48362597]
[1763500412916,0.68,141.3,141.28,3.48362597]
[1763500413527,23.02096,141.32,141.29,3.48362597]
[1763500413721,18.12096,141.3,141.29,3.48362597]
[1763500416237,9.78882769,141.35,141.29,4.17362597]
[1763500416238,18.12096,141.32,141.29,4.17362597]
[1763500416422,18.12096,141.32,141.3,3.48362597]
[1763500416617,18.12096,141.32,141.3,4.17362597]
[1763500416850,4.9,141.34,141.31,2.22768891]
[1763500417351,0.68,141.33,141.31,2.22768891]
[1763500421047,0.68,141.35,141.32,2.22768891]
[1763500421248,0.68,141.34,141.32,2.22768891]
[1763500421752,18.12096,141.33,141.31,2.22768891]
[1763500422157,18.80096,141.33,141.31,2.22768891]
[1763500422452,18.12096,141.33,141.31,2.22768891]
[1763500422823,18.80096,141.33,141.31,2.22768891]
[1763500423024,0.68,141.32,141.3,2.22768891]
[1763500425258,0.68,141.32,141.28,0.72]
[1763500425438,0.68,141.32,141.3,2.22768891]
[1763500425938,0.68,141.33,141.3,2.22768891]
[1763500426427,0.68,141.33,141.29,0.72]
[1763500426629,0.68,141.33,141.3,2.22768891]
[1763500428849,0.68,141.33,141.3,2.94768891]
[1763500429947,0.68,141.33,141.31,2.22768891]
[1763500430457,0.68,141.33,141.27,22.34096]
[1763500430754,0.68,141.33,141.3,2.22768891]
[1763500431855,0.68,141.33,141.25,0.72]
[1763500432063,4.2,141.32,141.26,18.12096]
[1763500432235,2.22768891,141.31,141.26,20.34864891]
[1763500432438,0.68,141.31,141.27,2.22768891]
[1763500433345,0.68,141.31,141.28,2.94768891]
[1763500433749,18.12096,141.3,141.28,2.94768891]
[1763500435960,18.80096,141.31,141.28,2.94768891]
[1763500436150,18.12096,141.3,141.28,2.94768891]
[1763500437079,18.80096,141.31,141.28,2.94768891]
[1763500437361,18.12096,141.3,141.28,2.94768891]
[1763500437565,18.80096,141.3,141.28,2.22768891]
[1763500437753,18.12096,141.3,141.28,2.22768891]
[1763500437953,18.12096,141.3,141.28,2.94768891]
[1763500439170,18.12096,141.3,141.28,2.22768891]
[1763500439367,18.12096,141.31,141.28,2.94768891]
[1763500439553,18.12096,141.3,141.28,2.94768891]
[1763500439756,18.12096,141.3,141.28,2.22768891]
[1763500441491,18.12096,141.31,141.29,2.94768891]
[1763500442050,18.12096,141.31,141.3,2.22768891]
[1763500445181,18.12096,141.31,141.29,2.22768891]
[1763500445365,18.12096,141.31,141.3,2.22768891]
[1763500445972,18.12096,141.31,141.29,2.22768891]
[1763500446562,18.12096,141.31,141.26,4.2]
[1763500446769,18.12096,141.31,141.29,2.22768891]
[1763500451387,4.2,141.32,141.29,2.22768891]
[1763500451682,18.12096,141.31,141.29,2.22768891]
[1763500451883,18.12096,141.31,141.26,18.12096]
[1763500452181,4.2,141.32,141.28,2.22768891]
[1763500452670,4.2,141.32,141.29,2.22768891]
[1763500454382,4.2,141.32,141.26,18.12096]
[1763500454572,4.2,141.33,141.3,2.22768891]
[1763500454773,4.90831562,141.33,141.3,2.22768891]
[1763500455283,4.90831562,141.33,141.29,2.22768891]
[1763500460495,4.90831562,141.33,141.3,2.22768891]
[1763500462992,4.90831562,141.33,141.27,16.86913445]
[1763500463178,4.90831562,141.33,141.29,2.22768891]
[1763500464602,0.70831562,141.33,141.31,2.22768891]
[1763500464895,22.32096,141.35,141.32,2.22768891]
[1763500465100,23.02927562,141.35,141.32,2.22768891]
[1763500465675,0.9,141.39,141.34,2.22768891]
[1763500465887,13.98882769,141.38,141.36,2.22768891]
[1763500466091,32.10978769,141.38,141.36,2.22768891]
[1763500466314,18.12096,141.38,141.37,2.22768891]
[1763500466516,22.32096,141.38,141.37,2.22768891]
[1763500466698,23.02096,141.38,141.37,2.22768891]
[1763500467018,4.9,141.38,141.37,2.22768891]
[1763500467195,23.02096,141.38,141.37,2.22768891]
[1763500467603,18.12096,141.37,141.36,2.22768891]
[1763500470014,4.2,141.38,141.36,2.22768891]
[1763500470316,4.9,141.38,141.37,2.22768891]
[1763500470521,4.9,141.38,141.36,2.22768891]
[1763500471413,4.2,141.38,141.35,13.98882769]
[1763500471617,4.2,141.38,141.37,2.22768891]
[1763500473400,18.12096,141.37,141.36,4.2]
[1763500473704,18.12096,141.37,141.36,2.22768891]
[1763500474406,4.2,141.38,141.36,2.22768891]
[1763500474605,22.32096,141.38,141.37,2.22768891]
[1763500475512,22.32096,141.38,141.36,2.22768891]
[1763500476332,19.52927562,141.37,141.36,4.2]
[1763500476537,19.52927562,141.37,141.33,2.22768891]
[1763500476735,0.7,141.36,141.34,4.2]
[1763500477104,18.82927562,141.37,141.34,4.2]
[1763500477304,23.72927562,141.37,141.34,4.2]
[1763500477607,23.72927562,141.37,141.34,7.67867113]
[1763500478332,23.72927562,141.37,141.34,3.47867113]
[1763500478505,23.72927562,141.37,141.35,7.67867113]
[1763500478705,23.72927562,141.37,141.34,3.47867113]
[1763500479123,0.7,141.36,141.33,3.47867113]
[1763500479711,0.7,141.36,141.34,7.67867113]
[1763500479914,13.98882769,141.35,141.34,7.67867113]
[1763500480229,17.46749882,141.35,141.31,7.67867113]
[1763500480421,0.7,141.34,141.31,7.67867113]
[1763500482152,4.2,141.35,141.32,3.47867113]
[1763500482634,0.65,141.35,141.32,3.47867113]
[1763500482932,0.65,141.35,141.32,11.15734226]
[1763500487135,0.65,141.35,141.33,3.47867113]
[1763500489135,0.65,141.35,141.33,11.15734226]
[1763500490145,0.65,141.35,141.33,3.47867113]
[1763500490747,0.70831562,141.34,141.3,3.47867113]
[1763500490924,0.70831562,141.34,141.29,4.62]
[1763500490925,0.65,141.33,141.31,14.63601339]
[1763500492242,0.65,141.33,141.31,11.15734226]
[1763500493837,0.65,141.33,141.31,14.63601339]
[1763500494039,18.12096,141.34,141.32,3.47867113]
[1763500494250,18.77096,141.34,141.32,3.47867113]
[1763500494423,0.65,141.33,141.32,3.47867113]
[1763500495046,0.65,141.33,141.31,14.63601339]
[1763500497944,1.35831562,141.33,141.3,3.47867113]
[1763500498248,1.35831562,141.33,141.3,21.59963113]
[1763500498449,0.65,141.32,141.3,21.59963113]
[1763500500835,0.65,141.32,141.3,18.12096]
[1763500501039,22.97096,141.32,141.27,4.2]
[1763500501245,10.43882769,141.31,141.27,18.12096]
[1763500501454,4.2,141.3,141.26,3.47867113]
[1763500501636,4.85,141.3,141.27,3.47867113]
[1763500501836,0.65,141.29,141.27,3.47867113]
[1763500502236,0.65,141.29,141.26,3.47867113]
[1763500502561,0.65,141.29,141.26,13.26749882]
[1763500502774,0.65,141.29,141.21,18.12096]
[1763500502775,18.12096,141.28,141.21,0.42]
[1763500503069,18.12096,141.26,141.24,9.78882769]
[1763500503437,18.77096,141.26,141.24,9.78882769]
[1763500503660,18.77096,141.26,141.24,13.26749882]
[1763500504170,18.77096,141.26,141.25,3.47867113]
[1763500504342,3.47867113,141.33,141.25,3.89867113]
[1763500504549,5.55831562,141.32,141.29,3.47867113]
[1763500504853,18.12096,141.3,141.29,3.47867113]
[1763500505360,23.02927562,141.32,141.29,3.47867113]
[1763500505549,0.65,141.3,141.29,3.47867113]
[1763500508868,0.65,141.3,141.28,9.78882769]
[1763500509163,0.65,141.3,141.28,13.26749882]
[1763500509752,0.65,141.3,141.29,3.47867113]
[1763500510443,5.55831562,141.31,141.29,3.47867113]
[1763500510747,0.65,141.3,141.29,3.47867113]
[1763500511172,0.65,141.3,141.28,9.78882769]
[1763500511173,0.65,141.3,141.28,13.26749882]
[1763500511349,0.65,141.3,141.27,3.47867113]
[1763500511744,0.65,141.3,141.28,3.47867113]
[1763500514047,0.65,141.3,141.28,21.59963113]
[1763500514755,0.65,141.3,141.29,3.47867113]
[1763500516185,0.65,141.3,141.28,21.59963113]
[1763500516372,0.67,141.3,141.28,21.59963113]
[1763500517079,0.67,141.3,141.29,3.47867113]
[1763500519561,18.79096,141.3,141.28,21.59963113]
[1763500519975,0.67,141.29,141.28,21.59963113]
[1763500520377,18.79096,141.3,141.28,3.47867113]
[1763500521967,18.79096,141.3,141.28,21.59963113]
[1763500523079,18.12096,141.3,141.28,3.47867113]
[1763500523251,0.67,141.32,141.29,3.47867113]
[1763500523451,5.57831562,141.32,141.3,3.47867113]
[1763500523657,18.79096,141.31,141.27,3.47867113]
[1763500524055,0.67,141.3,141.28,3.47867113]
[1763500525380,4.90831562,141.32,141.29,3.47867113]
[1763500525691,0.2,141.39,141.31,3.47867113]
[1763500525692,0.67,141.37,141.31,3.47867113]
[1763500525985,3.44,141.36,141.35,3.47867113]
[1763500526189,4.11,141.36,141.34,3.47867113]
[1763500526392,22.23096,141.36,141.34,3.47867113]
[1763500526604,0.67,141.35,141.34,3.47867113]
[1763500527062,22.23096,141.36,141.34,3.47867113]
[1763500527865,0.67,141.35,141.33,3.47867113]
[1763500528989,0.70831562,141.34,141.31,3.47867113]
[1763500529166,0.70831562,141.34,141.3,3.47867113]
[1763500529367,0.67,141.33,141.3,3.47867113]
[1763500529889,0.67,141.33,141.31,3.47867113]
[1763500531708,0.67,141.33,141.32,3.47867113]
[1763500531905,0.67,141.34,141.32,3.47867113]
[1763500532069,18.79096,141.34,141.33,3.47867113]
[1763500532268,18.79096,141.34,141.32,3.47867113]
[1763500532790,18.12096,141.34,141.32,3.47867113]
[1763500532990,0.67,141.33,141.31,3.47867113]
[1763500534890,0.67,141.33,141.32,3.47867113]
[1763500538891,0.67,141.36,141.32,2.64669994]
[1763500539199,22.32096,141.35,141.34,2.22669994]
[1763500539375,22.99096,141.35,141.34,2.22669994]
[1763500539577,0.67,141.37,141.34,2.22669994]
[1763500539778,4.2,141.36,141.35,2.22669994]
[1763500540176,4.87,141.36,141.35,2.22669994]
[1763500540598,18.79096,141.36,141.35,2.22669994]
[1763500542711,18.79096,141.36,141.34,2.22669994]
[1763500542888,0.69,141.35,141.34,2.22669994]
[1763500545712,18.81096,141.36,141.34,2.22669994]
[1763500545917,0.69,141.35,141.34,2.22669994]
[1763500547212,0.69,141.35,141.31,0.42]
[1763500547406,0.69,141.35,141.34,2.22669994]
[1763500547612,0.69,141.35,141.33,2.22669994]
[1763500548993,1.39831562,141.35,141.33,2.22669994]
[1763500549405,0.69,141.34,141.33,2.22669994]
[1763500549598,1.39831562,141.35,141.33,2.22669994]
[1763500556435,0.69,141.35,141.33,2.22669994]
[1763500557441,0.69,141.35,141.31,0.42]
[1763500557636,0.69,141.35,141.33,2.22669994]
[1763500559446,18.12096,141.36,141.34,2.22669994]
[1763500560723,18.81096,141.36,141.34,2.22669994]
[1763500561551,18.12096,141.36,141.35,2.22669994]
[1763500563434,4.89,141.37,141.35,2.22669994]
[1763500564360,4.2,141.37,141.35,2.22669994]
[1763500564648,4.89,141.37,141.35,2.22669994]
[1763500565030,4.2,141.37,141.35,2.22669994]
[1763500565224,0.69,141.36,141.35,2.22669994]
[1763500565421,0.69,141.36,141.34,2.22669994]
[1763500566059,0.70831562,141.35,141.31,2.22669994]
[1763500566241,4.2,141.34,141.31,2.22669994]
[1763500566447,4.89,141.34,141.31,2.22669994]
[1763500566637,0.69,141.33,141.31,2.22669994]
[1763500571770,0.69,141.33,141.3,2.22669994]
[1763500573764,0.69,141.33,141.31,2.22669994]
[1763500579668,0.69,141.33,141.3,2.22669994]
[1763500582155,0.69,141.33,141.29,2.22669994]
[1763500582354,2.22669994,141.31,141.26,2.22669994]
[1763500582561,2.22669994,141.3,141.24,2.22669994]
[1763500582758,2.22669994,141.29,141.24,2.22669994]
[1763500582959,2.91669994,141.29,141.24,2.22669994]
[1763500583161,0.69,141.28,141.24,2.22669994]
[1763500586577,0.69,141.28,141.21,18.12096]
[1763500586776,2.91669994,141.28,141.22,2.22669994]
[1763500587282,0.69,141.27,141.22,2.22669994]
[1763500588274,0.69,141.27,141.23,2.22669994]
[1763500588675,0.69,141.27,141.22,0.42]
[1763500588676,0.69,141.27,141.22,2.64669994]
[1763500588883,0.69,141.27,141.22,2.22669994]
[1763500589084,0.69,141.27,141.24,2.22669994]
[1763500589671,0.69,141.27,141.23,2.22669994]
[1763500590861,0.69,141.32,141.26,2.22669994]
[1763500591087,0.69,141.34,141.31,2.22669994]
[1763500591386,0.90831562,141.4,141.26,9.78882769]
[1763500591387,0.69,141.37,141.33,2.22669994]
[1763500591562,19.01096,141.39,141.35,2.22669994]
[1763500591963,0.69,141.38,141.35,2.22669994]
[1763500592981,1.39831562,141.38,141.31,0.42]
[1763500593189,1.39831562,141.38,141.34,2.22669994]
[1763500593484,0.69,141.37,141.33,2.22669994]
[1763500595489,0.69,141.37,141.34,2.22669994]
[1763500597078,0.69,141.37,141.3,4.62]
[1763500597285,0.69,141.37,141.33,2.22669994]
[1763500597475,0.70831562,141.36,141.31,2.22669994]
[1763500597672,2.22669994,141.35,141.26,0.42]
[1763500597878,0.70831562,141.34,141.3,2.22669994]
[1763500598075,3.62501556,141.34,141.26,18.54096]
[1763500598394,3.62501556,141.34,141.29,2.22669994]
[1763500598595,0.69,141.33,141.29,2.22669994]
[1763500598795,0.69,141.33,141.29,3.48093603]
[1763500599103,0.69,141.33,141.25,22.32096]
[1763500599280,0.70831562,141.32,141.28,3.48093603]
[1763500599479,4.18925165,141.32,141.27,3.48093603]
[1763500599672,0.69,141.31,141.27,3.48093603]
[1763500601497,0.69,141.31,141.28,3.48093603]
[1763500601714,0.69,141.31,141.29,3.48093603]
[1763500602326,0.69,141.31,141.28,3.48093603]
[1763500604087,0.69,141.31,141.29,3.48093603]
[1763500606517,1.37831562,141.33,141.3,3.48093603]
[1763500607120,0.67,141.32,141.3,3.48093603]
[1763500607719,0.67,141.32,141.29,3.48093603]
[1763500609223,0.70831562,141.31,141.28,3.48093603]
[1763500609519,0.70831562,141.31,141.27,3.48093603]
[1763500609706,1.37831562,141.31,141.27,3.48093603]
[1763500610522,0.67,141.3,141.27,3.48093603]
[1763500611105,0.67,141.3,141.24,22.32096]
[1763500611304,0.67,141.3,141.26,3.48093603]
[1763500611517,1.37831562,141.3,141.26,3.48093603]
[1763500611716,1.37831562,141.3,141.25,3.48093603]
[1763500612025,0.67,141.29,141.25,3.48093603]
[1763500613630,0.67,141.29,141.24,3.48093603]
[1763500613815,13.26976372,141.28,141.22,4.2]
[1763500614020,13.26976372,141.28,141.23,3.48093603]
[1763500614219,0.67,141.27,141.23,3.48093603]
[1763500618727,0.67,141.27,141.25,3.48093603]
[1763500620714,0.67,141.27,141.21,0.42]
[1763500620915,0.67,141.27,141.24,3.48093603]
[1763500621430,0.67,141.27,141.2,7.68093603]
[1763500621431,0.70831562,141.28,141.26,3.48093603]
[1763500621631,4.87,141.3,141.27,3.48093603]
[1763500621812,0.67,141.29,141.27,3.48093603]
[1763500622619,0.67,141.29,141.28,3.48093603]
[1763500625731,0.67,141.29,141.23,18.12096]
[1763500625732,1.37831562,141.29,141.23,18.12096]
[1763500625943,1.37831562,141.29,141.27,3.48093603]
[1763500626150,0.67,141.28,141.26,3.48093603]
[1763500627444,0.67,141.28,141.27,3.48093603]
[1763500628860,0.70831562,141.3,141.27,3.90093603]
[1763500629059,1.37831562,141.3,141.28,3.48093603]
[1763500629742,0.67,141.29,141.28,3.48093603]
[1763500635677,0.72,141.3,141.28,3.48093603]
[1763500635845,4.92,141.31,141.29,3.48093603]
[1763500636041,0.72,141.31,141.29,3.48093603]
[1763500636246,4.90831562,141.32,141.3,3.48093603]
[1763500636779,0.72,141.31,141.29,3.48093603]
[1763500637142,4.2,141.32,141.3,3.48093603]
[1763500637551,4.92,141.32,141.3,3.48093603]
[1763500638874,4.92,141.32,141.31,3.48093603]
[1763500639176,4.92,141.34,141.31,3.48093603]
[1763500639378,4.92,141.34,141.32,3.48093603]
[1763500639745,0.72,141.33,141.32,3.48093603]
[1763500640573,0.72,141.33,141.31,3.48093603]
[1763500642274,4.2,141.34,141.32,3.48093603]
[1763500642480,0.71,141.34,141.32,3.48093603]
[1763500642654,0.71,141.33,141.32,3.48093603]
[1763500642849,0.71,141.34,141.29,0.42]
[1763500643180,0.71,141.34,141.32,3.48093603]
[1763500644493,31.59072372,141.39,141.33,3.48093603]
[1763500644694,0.71,141.37,141.34,3.48093603]
[1763500644861,0.71,141.37,141.31,0.42]
[1763500645060,0.71,141.37,141.34,3.48093603]
[1763500645982,0.71,141.37,141.32,0.42]
[1763500646457,0.71,141.37,141.33,3.48093603]
[1763500648587,21.60189603,141.35,141.29,3.48093603]
[1763500648789,0.70831562,141.34,141.29,3.48093603]
[1763500649086,1.41831562,141.34,141.29,3.90093603]
[1763500649394,0.71,141.34,141.3,3.48093603]
[1763500650776,0.71,141.34,141.3,3.90093603]
[1763500653195,0.71,141.36,141.32,3.48093603]
[1763500653498,1.41831562,141.36,141.32,3.48093603]
[1763500653716,1.41831562,141.36,141.32,0.42]
[1763500653886,0.71,141.35,141.31,3.90093603]
[1763500654717,0.71,141.35,141.31,3.48093603]
[1763500660816,0.71,141.35,141.31,2.2268319]
[1763500660995,0.71,141.37,141.33,2.2268319]
[1763500661310,0.91,141.39,141.35,2.2268319]
[1763500661613,0.91,141.39,141.36,2.2268319]
[1763500662211,0.2,141.39,141.37,2.2268319]
[1763500663189,0.89,141.39,141.37,2.2268319]
[1763500663393,0.2,141.39,141.37,2.2268319]
[1763500666320,0.2,141.39,141.36,0.42]
[1763500666493,0.2,141.39,141.37,2.2268319]
[1763500666888,0.89,141.39,141.37,2.2268319]
[1763500667918,0.2,141.39,141.37,2.2268319]
[1763500668734,0.69,141.38,141.34,4.2]
[1763500668906,0.69,141.38,141.36,2.2268319]
[1763500669816,0.69,141.38,141.35,2.2268319]
[1763500670023,1.39831562,141.38,141.35,2.2268319]
[1763500670399,0.69,141.37,141.35,2.2268319]
[1763500670893,0.69,141.37,141.34,2.2268319]
[1763500672322,0.69,141.37,141.35,2.2268319]
[1763500673219,0.69,141.37,141.36,2.2268319]
[1763500673401,1.59831562,141.39,141.36,2.2268319]
[1763500673595,0.69,141.38,141.34,0.42]
[1763500673797,0.69,141.38,141.37,2.2268319]
[1763500676714,0.69,141.38,141.33,0.42]
[1763500677019,0.69,141.38,141.37,2.2268319]
[1763500677402,0.69,141.38,141.32,0.42]
[1763500677605,0.69,141.38,141.34,2.2268319]
[1763500678233,0.69,141.38,141.35,2.2268319]
[1763500678721,0.70831562,141.37,141.35,2.2268319]
[1763500679108,0.69,141.36,141.35,2.2268319]
[1763500686528,0.69,141.36,141.34,2.2268319]
[1763500686730,1.39831562,141.36,141.29,4.62]
[1763500686898,1.39831562,141.36,141.33,2.2268319]
[1763500687101,0.69,141.35,141.33,2.2268319]
[1763500687524,0.69,141.35,141.32,2.2268319]
[1763500687724,0.69,141.35,141.29,4.2]
[1763500688025,18.12096,141.33,141.24,10.20882769]
[1763500688227,18.12096,141.33,141.28,2.2268319]
[1763500688531,18.12096,141.31,141.28,2.2268319]
[1763500689005,0.69,141.3,141.28,2.2268319]
[1763500689443,0.69,141.3,141.27,2.2268319]
[1763500689618,0.69,141.3,141.26,2.2268319]
[1763500690108,0.69,141.3,141.27,2.2268319]
[1763500695057,0.69,141.3,141.24,4.62]
[1763500695340,4.89,141.3,141.26,2.2268319]
[1763500695726,0.69,141.29,141.26,2.2268319]
[1763500696120,0.69,141.29,141.28,2.2268319]
[1763500696339,0.69,141.29,141.26,2.2268319]
[1763500696722,20.3477919,141.27,141.22,2.2268319]
[1763500696943,4.2,141.26,141.22,2.2268319]
[1763500697144,4.89,141.26,141.22,2.2268319]
[1763500697322,18.12096,141.27,141.25,2.2268319]
[1763500697525,18.12096,141.29,141.26,2.2268319]
[1763500697726,0.69,141.29,141.28,2.2268319]
[1763500698033,18.81096,141.28,141.25,2.2268319]
[1763500698219,21.0377919,141.28,141.19,32.10978769]
[1763500698423,35.02661959,141.27,141.22,2.2268319]
[1763500698818,0.69,141.26,141.22,2.2268319]
[1763500699345,2.9168319,141.26,141.21,2.2268319]
[1763500699655,2.9168319,141.26,141.2,2.2268319]
[1763500699843,10.47882769,141.25,141.2,2.2268319]
[1763500700045,24.5477919,141.24,141.19,2.2268319]
[1763500700231,2.2268319,141.23,141.18,2.2268319]
[1763500700428,2.9168319,141.23,141.18,2.2268319]
[1763500700754,0.69,141.22,141.18,2.2268319]
[1763500701267,34.33661959,141.21,141.16,2.2268319]
[1763500701642,0.68,141.2,141.16,2.2268319]
[1763500703537,0.68,141.2,141.15,2.2268319]
[1763500704627,18.12096,141.21,141.18,2.2268319]
[1763500704933,4.2,141.23,141.2,2.2268319]
[1763500705232,18.80096,141.22,141.18,2.2268319]
[1763500705442,2.2268319,141.2,141.15,2.2268319]
[1763500705651,4.2,141.19,141.15,2.2268319]
[1763500705859,4.88,141.19,141.15,2.2268319]
[1763500706063,0.68,141.18,141.15,2.2268319]
[1763500706736,0.68,141.18,141.16,2.2268319]
[1763500707747,4.2,141.19,141.17,2.2268319]
[1763500708058,18.80096,141.2,141.17,2.2268319]
[1763500708247,0.68,141.19,141.14,0.42]
[1763500708554,0.68,141.19,141.17,2.2268319]
[1763500708960,0.68,141.19,141.18,2.2268319]
[1763500709660,0.68,141.19,141.17,2.2268319]
[1763500710265,0.68,141.19,141.16,2.2268319]
[1763500710564,4.2,141.18,141.16,2.2268319]
[1763500710940,0.68,141.17,141.16,2.2268319]
[1763500711441,0.68,141.17,141.15,2.2268319]
[1763500711877,0.68,141.17,141.12,0.1]
[1763500711878,0.68,141.17,141.14,2.2268319]
[1763500713376,0.68,141.17,141.13,2.2268319]
[1763500714450,0.70831562,141.16,141.13,2.2268319]
[1763500714864,0.68,141.15,141.13,2.2268319]
[1763500717037,0.70831562,141.17,141.13,2.2268319]
[1763500717238,110.19200489,141.33,141.16,2.2268319]
[1763500717239,5.58831562,141.19,141.16,2.2268319]
[1763500717439,0.68,141.19,141.17,2.2268319]
[1763500717635,0.70831562,141.19,141.17,2.2268319]
[1763500717856,1.38831562,141.19,141.17,2.2268319]
[1763500719070,0.70831562,141.19,141.17,2.2268319]
[1763500719254,0.68,141.18,141.17,2.2268319]
[1763500720274,0.68,141.18,141.16,2.2268319]
[1763500720766,0.70831562,141.17,141.15,2.2268319]
[1763500721179,1.38831562,141.17,141.15,2.2268319]
[1763500722972,1.38831562,141.17,141.15,3.48780692]
[1763500723273,0.70831562,141.17,141.15,3.48780692]
[1763500723459,0.72,141.17,141.15,3.48780692]
[1763500723768,0.70831562,141.18,141.15,3.48780692]
[1763500723960,1.42831562,141.19,141.16,3.48780692]
[1763500724162,4.2,141.2,141.17,3.48780692]
[1763500724163,0.70831562,141.2,141.17,3.48780692]
[1763500724353,9.78882769,141.23,141.18,3.48780692]
[1763500724354,0.70831562,141.21,141.18,3.48780692]
[1763500724557,1.42831562,141.21,141.18,3.48780692]
[1763500725158,0.72,141.2,141.18,3.48780692]
[1763500725477,0.70831562,141.19,141.16,3.48780692]
[1763500726176,0.72,141.19,141.16,3.48780692]
[1763500730763,0.70831562,141.2,141.17,3.48780692]
[1763500730969,0.72,141.2,141.17,3.48780692]
[1763500733066,0.72,141.2,141.15,0.42]
[1763500733067,0.72,141.2,141.16,3.48780692]
[1763500733468,0.70831562,141.21,141.17,3.48780692]
[1763500733676,0.72,141.21,141.18,3.48780692]
[1763500734752,1.42831562,141.22,141.18,3.90780692]
[1763500735191,0.72,141.21,141.18,3.90780692]
[1763500735882,0.72,141.21,141.18,3.48780692]
[1763500736082,0.72,141.21,141.17,3.90780692]
[1763500736276,0.72,141.21,141.17,3.48780692]
[1763500737255,0.72,141.21,141.17,3.90780692]
[1763500738186,0.72,141.21,141.18,3.48780692]
[1763500738485,3.48780692,141.26,141.2,3.48780692]
[1763500738687,6.13418103,141.32,141.25,3.48780692]
[1763500738867,6.13418103,141.32,141.29,3.48780692]
[1763500738868,0.70831562,141.32,141.29,3.48780692]
[1763500739068,0.72,141.33,141.29,3.48780692]
[1763500739259,0.72,141.33,141.3,3.48780692]
[1763500739967,0.72,141.33,141.29,3.48780692]
[1763500740375,0.70831562,141.32,141.26,0.42]
[1763500740576,0.72,141.33,141.29,3.48780692]
[1763500740787,0.72,141.32,141.29,3.48780692]
[1763500741087,0.2,141.34,141.32,18.12096]
[1763500741302,0.2,141.34,141.33,21.60876692]
[1763500741498,0.2,141.34,141.33,22.02876692]
[1763500741699,0.2,141.39,141.33,3.90780692]
[1763500742005,0.2,141.39,141.38,3.48780692]
[1763500742174,0.92,141.39,141.38,3.48780692]
[1763500743406,0.2,141.39,141.37,3.48780692]
[1763500743590,0.2,141.39,141.38,3.48780692]
[1763500747186,0.2,141.39,141.38,3.70780692]
[1763500747586,0.2,141.4,141.38,13.49663461]
[1763500747806,0.2,141.4,141.39,21.60876692]
[1763500748189,0.2,141.4,141.39,18.12096]
[1763500748510,0.2,141.4,141.39,21.60876692]
[1763500748910,0.2,141.4,141.39,24.44413817]
[1763500753727,0.2,141.43,141.42,18.12096]
[1763500753898,0.2,141.45,141.42,18.12096]
[1763500753899,0.2,141.45,141.43,9.78882769]
[1763500754215,0.2,141.47,141.46,18.12096]
[1763500754419,0.2,141.47,141.46,25.80876692]
[1763500754917,0.2,141.47,141.46,27.78697348]